fUST/lending_fUST_20250702
["ID","MTS","AMOUNT","RATE_DAILY","PERIOD"]
[369042475,1751443846066,-500.0,0.00016773,2]
[369042476,1751443846075,-500.0,0.00016773,2]
[369042477,1751443846084,-366.235562,0.000168,2]
[369042478,1751443846093,-890.64427428,0.00016813,2]
[369042479,1751443846102,-923.59811243,0.00016868,2]
[369042480,1751443846112,-773.6264288,0.00016916,2]
[369042481,1751443846121,-957.77124259,0.00016923,2]
[369042482,1751443846130,-25000.0,0.00016976,2]
[369042483,1751443846140,-5000.0,0.00016976,2]
[369042484,1751443846149,-993.20877856,0.00016978,2]
[369042485,1751443846159,-500.0,0.00016985,2]
[369042486,1751443846168,-500.0,0.00016985,2]
[369042488,1751443846178,-500.0,0.00016985,2]
[369042489,1751443846187,-500.0,0.00016985,2]
[369042491,1751443846197,-500.0,0.00016985,2]
[369042493,1751443846207,-500.0,0.00016985,2]
[369042495,1751443846216,-466.18,0.00016985,2]
[369042498,1751443846225,-151.0,0.00016986,2]
[369042500,1751443846235,-151.0,0.00016986,2]
[369042502,1751443846244,-151.0,0.00016986,2]
[369042504,1751443846254,-176.053222,0.00016986,2]
[369042506,1751443846263,-176.053222,0.00016986,2]
[369042508,1751443846272,-798.910393,0.00016986,2]
[369042510,1751443846281,-151.0,0.00016986,2]
[369042512,1751443846291,-151.0,0.00016986,2]
[369042514,1751443846300,-460.0,0.00016986,2]
[369042516,1751443846309,-355.9014168,0.00016986,2]
[369042518,1751443846319,-460.0,0.00016986,2]
[369042520,1751443846329,-460.0,0.00016986,2]
[369042522,1751443846337,-460.0,0.00016986,2]
[369042524,1751443846346,-460.0,0.00016986,2]
[369042526,1751443846356,-460.0,0.00016986,2]
[369042528,1751443846365,-460.0,0.00016986,2]
[369042530,1751443846374,-427.68250477,0.00016986,2]
[369042532,1751443846383,-594.43852753,0.00016986,2]
[369042534,1751443846393,-460.0,0.00016986,2]
[369042536,1751443846404,-460.0,0.00016986,2]
[369042538,1751443846416,-460.0,0.00016986,2]
[369042540,1751443846425,-460.0,0.00016986,2]
[369042542,1751443846435,-794.32,0.00016986,2]
[369042544,1751443846444,-460.0,0.00016986,2]
[369042546,1751443846454,-468.54,0.00016986,2]
[369042548,1751443846464,-460.0,0.00016986,2]
[369042550,1751443846473,-460.0,0.00016986,2]
[369042552,1751443846482,-460.0,0.00016986,2]
[369042554,1751443846491,-460.0,0.00016986,2]
[369042556,1751443846501,-460.0,0.00016986,2]
[369042558,1751443846510,-850.98,0.00016986,2]
[369042560,1751443846519,-502.78196835,0.00016986,2]
[369042562,1751443846528,-460.0,0.00016986,2]
[369042564,1751443846538,-460.0,0.00016986,2]
[369042566,1751443846548,-568.63,0.00016986,2]
[369042568,1751443846557,-460.0,0.00016986,2]
[369042570,1751443846567,-460.0,0.00016986,2]
[369042572,1751443846577,-460.0,0.00016986,2]
[369042574,1751443846586,-460.0,0.00016986,2]
[369042576,1751443846596,-460.0,0.00016986,2]
[369042578,1751443846606,-344.53419434,0.00016986,2]
[369042580,1751443846615,-460.0,0.00016986,2]
[369042582,1751443846626,-471.23883047,0.00016986,2]
[369042584,1751443846635,-460.0,0.00016986,2]
[369042586,1751443846645,-438.56377557,0.00016986,2]
[369042588,1751443846655,-460.0,0.00016986,2]
[369042590,1751443846664,-460.0,0.00016986,2]
[369042592,1751443846673,-460.0,0.00016986,2]
[369042594,1751443846682,-460.0,0.00016986,2]
[369042596,1751443846691,-460.0,0.00016986,2]
[369042598,1751443846700,-460.0,0.00016986,2]
[369042600,1751443846709,-491.42533964,0.00016986,2]
[369042602,1751443846719,-460.0,0.00016986,2]
[369042604,1751443846728,-460.0,0.00016986,2]
[369042606,1751443846739,-460.0,0.00016986,2]
[369042608,1751443846748,-460.0,0.00016986,2]
[369042611,1751443846758,-460.0,0.00016986,2]
[369042612,1751443846767,-500.0,0.00016986,2]
[369042615,1751443846777,-835.56,0.00016986,2]
[369042616,1751443846786,-768.71,0.00016986,2]
[369042618,1751443846796,-224.87899382,0.00016986,2]
[369042621,1751443846806,-460.0,0.00016986,2]
[369042623,1751443846815,-460.0,0.00016986,2]
[369042624,1751443846825,-241.0276623,0.00016986,2]
[369042627,1751443846836,-460.0,0.00016986,2]
[369042629,1751443846845,-460.0,0.00016986,2]
[369042631,1751443846855,-460.0,0.00016986,2]
[369042633,1751443846864,-460.0,0.00016986,2]
[369042635,1751443846873,-535.08,0.00016986,2]
[369042637,1751443846882,-460.0,0.00016986,2]
[369042639,1751443846892,-460.0,0.00016986,2]
[369042641,1751443846901,-1879.38,0.00016986,2]
[369042643,1751443846910,-1637.15,0.00016986,2]
[369042645,1751443846919,-460.0,0.00016986,2]
[369042646,1751443846927,-485.05695505,0.00016986,2]
[369042649,1751443846937,-460.0,0.00016986,2]
[369042650,1751443846946,-460.0,0.00016986,2]
[369042653,1751443846956,-1010.49,0.00016986,2]
[369042654,1751443846965,-460.0,0.00016986,2]
[369042656,1751443846976,-209.060974,0.00016986,2]
[369042658,1751443846987,-460.0,0.00016986,2]
[369042660,1751443846995,-460.0,0.00016986,2]
[369042662,1751443847005,-1429.84,0.00016986,2]
[369042665,1751443847015,-1289.25,0.00016986,2]
[369042667,1751443847026,-1075.42,0.00016986,2]
[369042669,1751443847035,-460.0,0.00016986,2]
[369042670,1751443847044,-506.74693729,0.00016986,2]
[369042672,1751443847054,-460.0,0.00016986,2]
[369042674,1751443847063,-645.44,0.00016986,2]
[369042677,1751443847072,-3279.83,0.00016986,2]
[369042679,1751443847081,-460.0,0.00016986,2]
[369042680,1751443847091,-462.42164936,0.00016986,2]
[369042682,1751443847100,-845.66,0.00016986,2]
[369042684,1751443847109,-460.0,0.00016986,2]
[369042686,1751443847118,-460.0,0.00016986,2]
[369042688,1751443847127,-460.0,0.00016986,2]
[369042690,1751443847136,-3040.19,0.00016986,2]
[369042692,1751443847146,-5322.34,0.00016986,2]
[369042695,1751443847155,-537.01028422,0.00016986,2]
[369042697,1751443847164,-882.43,0.00016986,2]
[369042699,1751443847173,-460.0,0.00016986,2]
[369042701,1751443847183,-532.43,0.00016986,2]
[369042703,1751443847192,-635.2,0.00016986,2]
[369042705,1751443847205,-460.0,0.00016986,2]
[369042707,1751443847214,-460.0,0.00016986,2]
[369042709,1751443847223,-600.73,0.00016986,2]
[369042711,1751443847233,-460.0,0.00016986,2]
[369042713,1751443847242,-460.0,0.00016986,2]
[369042715,1751443847251,-460.0,0.00016986,2]
[369042717,1751443847260,-460.0,0.00016986,2]
[369042719,1751443847269,-460.0,0.00016986,2]
[369042721,1751443847279,-460.0,0.00016986,2]
[369042723,1751443847288,-500.1,0.00016986,2]
[369042725,1751443847298,-460.0,0.00016986,2]
[369042727,1751443847307,-460.0,0.00016986,2]
[369042729,1751443847316,-881.02,0.00016986,2]
[369042731,1751443847326,-623.2,0.00016986,2]
[369042733,1751443847335,-460.0,0.00016986,2]
[369042735,1751443847345,-460.0,0.00016986,2]
[369042737,1751443847355,-1471.72,0.00016986,2]
[369042739,1751443847364,-394.04018953,0.00016986,2]
[369042741,1751443847375,-934.62,0.00016986,2]
[369042743,1751443847385,-460.0,0.00016986,2]
[369042745,1751443847394,-1564.84,0.00016986,2]
[369042747,1751443847404,-460.0,0.00016986,2]
[369042749,1751443847414,-2631.81,0.00016986,2]
[369042751,1751443847423,-460.0,0.00016986,2]
[369042753,1751443847432,-460.0,0.00016986,2]
[369042755,1751443847442,-460.0,0.00016986,2]
[369042757,1751443847451,-462.31722438,0.00016986,2]
[369042759,1751443847461,-460.0,0.00016986,2]
[369042762,1751443847470,-460.0,0.00016986,2]
[369042764,1751443847479,-460.0,0.00016986,2]
[369042766,1751443847489,-460.0,0.00016986,2]
[369042768,1751443847498,-460.0,0.00016986,2]
[369042770,1751443847508,-460.0,0.00016986,2]
[369042772,1751443847517,-550.50883297,0.00016986,2]
[369042774,1751443847526,-460.0,0.00016986,2]
[369042776,1751443847536,-151.0,0.00016986,2]
[369042778,1751443847546,-3305.11,0.00016986,2]
[369042780,1751443847556,-2728.27,0.00016986,2]
[369042782,1751443847565,-849.36,0.00016986,2]
[369042784,1751443847575,-460.0,0.00016986,2]
[369042786,1751443847585,-460.0,0.00016986,2]
[369042788,1751443847595,-460.0,0.00016986,2]
[369042790,1751443847605,-615.95,0.00016986,2]
[369042792,1751443847615,-845.22,0.00016986,2]
[369042794,1751443847624,-460.0,0.00016986,2]
[369042796,1751443847634,-594.16,0.00016986,2]
[369042798,1751443847644,-460.0,0.00016986,2]
[369042800,1751443847653,-570.93987449,0.00016986,2]
[369042802,1751443847663,-460.0,0.00016986,2]
[369042804,1751443847673,-460.0,0.00016986,2]
[369042806,1751443847683,-151.0,0.00016986,2]
[369042808,1751443847693,-460.0,0.00016986,2]
[369042810,1751443847703,-515.26,0.00016986,2]
[369042812,1751443847712,-722.43,0.00016986,2]
[369042814,1751443847721,-460.0,0.00016986,2]
[369042817,1751443847731,-460.0,0.00016986,2]
[369042819,1751443847741,-213.060864,0.00016986,2]
[369042821,1751443847751,-460.0,0.00016986,2]
[369042823,1751443847761,-460.0,0.00016986,2]
[369042825,1751443847771,-180.72,0.00016986,2]
[369042827,1751443847781,-659.03,0.00016986,2]
[369042829,1751443847790,-709.32,0.00016986,2]
[369042830,1751443847800,-1153.43,0.00016986,2]
[369042833,1751443847810,-547.81,0.00016986,2]
[369042835,1751443847820,-1284.04,0.00016986,2]
[369042837,1751443847829,-460.0,0.00016986,2]
[369042839,1751443847838,-151.0,0.00016986,2]
[369042841,1751443847848,-2203.89,0.00016986,2]
[369042843,1751443847858,-460.0,0.00016986,2]
[369042845,1751443847867,-460.0,0.00016986,2]
[369042847,1751443847878,-340.740744,0.00016986,2]
[369042849,1751443847888,-693.55,0.00016986,2]
[369042851,1751443847898,-460.0,0.00016986,2]
[369042853,1751443847908,-460.0,0.00016986,2]
[369042855,1751443847918,-340.740744,0.00016986,2]
[369042857,1751443847928,-2135.01,0.00016986,2]
[369042859,1751443847939,-7054.28,0.00016986,2]
[369042861,1751443847948,-644.54,0.00016986,2]
[369042863,1751443847959,-151.0,0.00016986,2]
[369042865,1751443847969,-460.0,0.00016986,2]
[369042867,1751443847984,-460.0,0.00016986,2]
[369042869,1751443847995,-460.0,0.00016986,2]
[369042871,1751443848005,-151.0,0.00016986,2]
[369042873,1751443848016,-460.0,0.00016986,2]
[369042876,1751443848028,-151.0,0.00016986,2]
[369042877,1751443848037,-678.82,0.00016986,2]
[369042880,1751443848049,-863.54,0.00016986,2]
[369042882,1751443848063,-151.0,0.00016986,2]
[369042884,1751443848073,-151.0,0.00016986,2]
[369042886,1751443848083,-652.57,0.00016986,2]
[369042888,1751443848092,-1564.8,0.00016986,2]
[369042890,1751443848102,-750.41,0.00016986,2]
[369042892,1751443848112,-460.0,0.00016986,2]
[369042894,1751443848121,-460.0,0.00016986,2]
[369042896,1751443848131,-460.0,0.00016986,2]
[369042898,1751443848140,-460.0,0.00016986,2]
[369042900,1751443848150,-586.48,0.00016986,2]
[369042902,1751443848161,-4867.25,0.00016986,2]
[369042904,1751443848170,-921.43,0.00016986,2]
[369042906,1751443848180,-151.0,0.00017,2]
[369042908,1751443848190,-227.201707,0.00017,2]
[369042910,1751443848200,-151.0,0.00017,2]
[369042912,1751443848209,-176.053222,0.00017,2]
[369042914,1751443848220,-176.053222,0.00017,2]
[369042917,1751443848232,-798.910393,0.00017,2]
[369042919,1751443848242,-151.0,0.00017,2]
[369042921,1751443848251,-151.0,0.00017,2]
[369042923,1751443848261,-1000.0,0.00017021,2]
[369042925,1751443848270,-500.0,0.00017021,2]
[369042927,1751443848280,-571.29227353,0.00017021,2]
[369042929,1751443848290,-1000.0,0.00017021,2]
[369042931,1751443848299,-500.0,0.00017021,2]
[369042933,1751443848309,-1002.16347564,0.00017021,2]
[369042935,1751443848318,-1000.0,0.00017021,2]
[369042937,1751443848328,-1000.0,0.00017021,2]
[369042939,1751443848338,-3000.0,0.00017022,2]
[369042941,1751443848348,-151.0,0.00017022,2]
[369042943,1751443848358,-151.0,0.00017022,2]
[369042945,1751443848368,-151.0,0.00017022,2]
[369042947,1751443848377,-936.841096,0.00017022,2]
[369042949,1751443848387,-936.841096,0.00017022,2]
[369042951,1751443848396,-1029.95750337,0.00017033,2]
[369042953,1751443848406,-8759.82402303,0.00017077,2]
[369042955,1751443848416,-1068.065931,0.00017088,2]
[369042957,1751443848425,-1107.58437044,0.00017143,2]
[369042959,1751443848435,-1148.56499215,0.00017198,2]
[369042961,1751443848445,-773.6264288,0.00017205,2]
[369042963,1751443848455,-151.0,0.0001725,2]
[369042965,1751443848466,-468.158223,0.0001725,2]
[369042967,1751443848476,-468.158223,0.0001725,2]
[369042969,1751443848485,-151.0,0.0001725,2]
[369042972,1751443848495,-151.57604,0.0001725,2]
[369042974,1751443848505,-151.656345,0.0001725,2]
[369042976,1751443848515,-151.0,0.0001725,2]
[369042978,1751443848524,-151.0,0.0001725,2]
[369042980,1751443848534,-258.605202,0.0001725,2]
[369042982,1751443848544,-258.605202,0.0001725,2]
[369042984,1751443848553,-159.27475,0.0001725,2]
[369042986,1751443848563,-698.04941,0.0001725,2]
[369042988,1751443848573,-698.04941,0.0001725,2]
[369042989,1751443848583,-1191.06189686,0.00017253,2]
[369042990,1751443848593,-151.0,0.0001726,2]
[369042991,1751443848603,-176.053222,0.0001726,2]
[369042992,1751443848612,-176.053222,0.0001726,2]
[369042993,1751443848621,-798.910393,0.0001726,2]
[369042994,1751443848631,-151.0,0.0001726,2]
[369042995,1751443848640,-151.0,0.0001726,2]
[369042996,1751443848650,-460.0,0.0001726,2]
[369042997,1751443848660,-460.0,0.0001726,2]
[369042998,1751443848669,-460.0,0.0001726,2]
[369042999,1751443848678,-399.28335597,0.0001726,2]
[369043000,1751443848688,-460.0,0.0001726,2]
[369043001,1751443848698,-460.0,0.0001726,2]
[369043002,1751443848708,-460.0,0.0001726,2]
[369043003,1751443848717,-460.0,0.0001726,2]
[369043004,1751443848726,-794.32,0.0001726,2]
[369043005,1751443848736,-460.0,0.0001726,2]
[369043007,1751443848746,-468.54,0.0001726,2]
[369043009,1751443848755,-460.0,0.0001726,2]
[369043011,1751443848765,-460.0,0.0001726,2]
[369043013,1751443848775,-394.21207803,0.0001726,2]
[369043015,1751443848785,-460.0,0.0001726,2]
[369043017,1751443848795,-850.98,0.0001726,2]
[369043020,1751443848805,-460.0,0.0001726,2]
[369043022,1751443848819,-460.0,0.0001726,2]
[369043024,1751443848828,-568.63,0.0001726,2]
[369043026,1751443848838,-460.0,0.0001726,2]
[369043028,1751443848848,-460.0,0.0001726,2]
[369043030,1751443848858,-460.0,0.0001726,2]
[369043032,1751443848868,-460.0,0.0001726,2]
[369043034,1751443848878,-460.0,0.0001726,2]
[369043036,1751443848888,-460.0,0.0001726,2]
[369043038,1751443848898,-460.0,0.0001726,2]
[369043040,1751443848908,-460.0,0.0001726,2]
[369043042,1751443848918,-460.0,0.0001726,2]
[369043044,1751443848928,-460.0,0.0001726,2]
[369043046,1751443848938,-460.0,0.0001726,2]
[369043048,1751443848948,-460.0,0.0001726,2]
[369043050,1751443848959,-361.49199315,0.0001726,2]
[369043052,1751443848970,-460.0,0.0001726,2]
[369043054,1751443848984,-320.60110058,0.0001726,2]
[369043057,1751443848994,-460.0,0.0001726,2]
[369043059,1751443849004,-460.0,0.0001726,2]
[369043061,1751443849014,-460.0,0.0001726,2]
[369043063,1751443849025,-835.56,0.0001726,2]
[369043065,1751443849034,-768.71,0.0001726,2]
[369043067,1751443849045,-460.0,0.0001726,2]
[369043069,1751443849055,-460.0,0.0001726,2]
[369043071,1751443849065,-151.0,0.0001726,2]
[369043073,1751443849076,-561.43583102,0.0001726,2]
[369043075,1751443849085,-460.0,0.0001726,2]
[369043077,1751443849095,-519.87645779,0.0001726,2]
[369043079,1751443849105,-460.0,0.0001726,2]
[369043081,1751443849114,-535.08,0.0001726,2]
[369043083,1751443849124,-460.0,0.0001726,2]
[369043085,1751443849134,-151.0,0.0001726,2]
[369043087,1751443849144,-151.0,0.0001726,2]
[369043089,1751443849154,-460.0,0.0001726,2]
[369043091,1751443849164,-1879.38,0.0001726,2]
[369043093,1751443849174,-1637.15,0.0001726,2]
[369043095,1751443849183,-460.0,0.0001726,2]
[369043097,1751443849193,-460.0,0.0001726,2]
[369043099,1751443849203,-1010.49,0.0001726,2]
[369043102,1751443849213,-460.0,0.0001726,2]
[369043104,1751443849223,-460.0,0.0001726,2]
[369043106,1751443849233,-1429.84,0.0001726,2]
[369043108,1751443849243,-1289.25,0.0001726,2]
[369043110,1751443849253,-1075.42,0.0001726,2]
[369043112,1751443849263,-460.0,0.0001726,2]
[369043114,1751443849274,-460.0,0.0001726,2]
[369043116,1751443849284,-645.44,0.0001726,2]
[369043118,1751443849294,-3279.83,0.0001726,2]
[369043120,1751443849305,-845.66,0.0001726,2]
[369043122,1751443849315,-460.0,0.0001726,2]
[369043124,1751443849325,-460.0,0.0001726,2]
[369043126,1751443849335,-460.0,0.0001726,2]
[369043128,1751443849345,-3040.19,0.0001726,2]
[369043130,1751443849354,-5322.34,0.0001726,2]
[369043132,1751443849364,-882.43,0.0001726,2]
[369043134,1751443849374,-460.0,0.0001726,2]
[369043136,1751443849384,-532.43,0.0001726,2]
[369043138,1751443849394,-635.2,0.0001726,2]
[369043140,1751443849403,-460.0,0.0001726,2]
[369043142,1751443849413,-460.0,0.0001726,2]
[369043144,1751443849422,-600.73,0.0001726,2]
[369043159,1751443849549,-460.0,0.0001726,2]
[369043161,1751443849574,-460.0,0.0001726,2]
[369043163,1751443849584,-460.0,0.0001726,2]
[369043165,1751443849594,-460.0,0.0001726,2]
[369043167,1751443849603,-460.0,0.0001726,2]
[369043169,1751443849613,-460.0,0.0001726,2]
[369043171,1751443849623,-500.1,0.0001726,2]
[369043173,1751443849633,-460.0,0.0001726,2]
[369043175,1751443849642,-460.0,0.0001726,2]
[369043177,1751443849652,-881.02,0.0001726,2]
[369043179,1751443849661,-460.0,0.0001726,2]
[369043181,1751443849671,-623.2,0.0001726,2]
[369043183,1751443849680,-460.0,0.0001726,2]
[369043185,1751443849689,-1471.72,0.0001726,2]
[369043187,1751443849699,-934.62,0.0001726,2]
[369043189,1751443849709,-460.0,0.0001726,2]
[369043191,1751443849720,-1564.84,0.0001726,2]
[369043193,1751443849733,-460.0,0.0001726,2]
[369043195,1751443849743,-2631.81,0.0001726,2]
[369043197,1751443849753,-365.16436708,0.0001726,2]
[369043199,1751443849768,-460.0,0.0001726,2]
[369043201,1751443849777,-460.0,0.0001726,2]
[369043203,1751443849788,-460.0,0.0001726,2]
[369043205,1751443849797,-460.0,0.0001726,2]
[369043207,1751443849807,-462.0247974,0.0001726,2]
[369043209,1751443849817,-460.0,0.0001726,2]
[369043211,1751443849826,-460.0,0.0001726,2]
[369043213,1751443849835,-151.0,0.0001726,2]
[369043215,1751443849845,-3305.11,0.0001726,2]
[369043217,1751443849854,-2728.27,0.0001726,2]
[369043218,1751443849863,-849.36,0.0001726,2]
[369043220,1751443849873,-460.0,0.0001726,2]
[369043222,1751443849883,-460.0,0.0001726,2]
[369043225,1751443849893,-615.95,0.0001726,2]
[369043226,1751443849903,-460.0,0.0001726,2]
[369043228,1751443849913,-845.22,0.0001726,2]
[369043230,1751443849923,-594.16,0.0001726,2]
[369043232,1751443849933,-460.0,0.0001726,2]
[369043234,1751443849942,-460.0,0.0001726,2]
[369043236,1751443849952,-460.0,0.0001726,2]
[369043238,1751443849962,-151.0,0.0001726,2]
[369043240,1751443849973,-515.26,0.0001726,2]
[369043243,1751443849987,-722.43,0.0001726,2]
[369043245,1751443849997,-208.54623544,0.0001726,2]
[369043246,1751443850006,-460.0,0.0001726,2]
[369043248,1751443850016,-460.0,0.0001726,2]
[369043250,1751443850027,-460.0,0.0001726,2]
[369043252,1751443850036,-659.03,0.0001726,2]
[369043254,1751443850045,-709.32,0.0001726,2]
[369043256,1751443850056,-1153.43,0.0001726,2]
[369043258,1751443850065,-547.81,0.0001726,2]
[369043260,1751443850075,-1284.04,0.0001726,2]
[369043262,1751443850085,-460.0,0.0001726,2]
[369043264,1751443850094,-151.0,0.0001726,2]
[369043266,1751443850104,-2203.89,0.0001726,2]
[369043268,1751443850113,-460.0,0.0001726,2]
[369043270,1751443850122,-936.841096,0.0001726,2]
[369043272,1751443850132,-460.0,0.0001726,2]
[369043274,1751443850142,-340.740744,0.0001726,2]
[369043276,1751443850152,-693.55,0.0001726,2]
[369043278,1751443850161,-465.87202488,0.0001726,2]
[369043280,1751443850170,-460.0,0.0001726,2]
[369043282,1751443850180,-340.740744,0.0001726,2]
[369043284,1751443850189,-936.841096,0.0001726,2]
[369043286,1751443850199,-2135.01,0.0001726,2]
[369043288,1751443850208,-7054.28,0.0001726,2]
[369043290,1751443850218,-644.54,0.0001726,2]
[369043292,1751443850228,-151.0,0.0001726,2]
[369043294,1751443850239,-460.0,0.0001726,2]
[369043297,1751443850248,-460.0,0.0001726,2]
[369043298,1751443850257,-460.0,0.0001726,2]
[369043300,1751443850266,-151.0,0.0001726,2]
[369043303,1751443850276,-460.0,0.0001726,2]
[369043304,1751443850285,-151.0,0.0001726,2]
[369043306,1751443850294,-678.82,0.0001726,2]
[369043308,1751443850304,-863.54,0.0001726,2]
[369043311,1751443850313,-151.0,0.0001726,2]
[369043312,1751443850322,-151.0,0.0001726,2]
[369043314,1751443850331,-652.57,0.0001726,2]
[369043317,1751443850340,-1564.8,0.0001726,2]
[369043318,1751443850349,-750.41,0.0001726,2]
[369043320,1751443850358,-460.0,0.0001726,2]
[369043322,1751443850368,-460.0,0.0001726,2]
[369043324,1751443850377,-460.0,0.0001726,2]
[369043326,1751443850387,-586.48,0.0001726,2]
[369043328,1751443850396,-4867.25,0.0001726,2]
[369043330,1751443850406,-921.43,0.0001726,2]
[369043332,1751443850415,-500.0,0.00017321,2]
[369043334,1751443850425,-1000.0,0.00017321,2]
[369043336,1751443850435,-501.07074944,0.00017321,2]
[369043338,1751443850444,-500.64498264,0.00017321,2]
[369043340,1751443850454,-864.72,0.00017342,2]
[369043342,1751443850463,-178.16484544,0.00017342,2]
[369043344,1751443850473,-151.0,0.00017433,2]
[369043346,1751443850482,-151.0,0.00017479,2]
[369043348,1751443850492,-151.0,0.00017479,2]
[369043350,1751443850501,-773.6264288,0.00017494,2]
[369043352,1751443850510,-151.0,0.000175,2]
[369043354,1751443850519,-1000.0,0.00017506,2]
[369043356,1751443850529,-1000.0,0.00017506,2]
[369043358,1751443850538,-1000.0,0.00017506,2]
[369043360,1751443850547,-1000.0,0.00017506,2]
[369043362,1751443850557,-1000.0,0.00017506,2]
[369043364,1751443850566,-1000.0,0.00017506,2]
[369043366,1751443850575,-1000.0,0.00017506,2]
[369043368,1751443850584,-1000.0,0.00017506,2]
[369043370,1751443850594,-1000.0,0.00017506,2]
[369043372,1751443850603,-322.02022805,0.00017506,2]
[369043374,1751443850613,-5000.0,0.00017524,2]
[369043376,1751443850622,-151.0,0.00017534,2]
[369043378,1751443850632,-176.053222,0.00017534,2]
[369043380,1751443850641,-176.053222,0.00017534,2]
[369043382,1751443850650,-798.910393,0.00017534,2]
[369043384,1751443850660,-798.910393,0.00017534,2]
[369043386,1751443850669,-151.0,0.00017534,2]
[369043388,1751443850679,-151.0,0.00017534,2]
[369043390,1751443850688,-151.0,0.00017534,2]
[369043392,1751443850697,-151.0,0.00017534,2]
[369043394,1751443850707,-460.0,0.00017534,2]
[369043396,1751443850716,-151.0,0.00017534,2]
[369043398,1751443850725,-151.0,0.00017534,2]
[369043400,1751443850735,-336.306551,0.00017534,2]
[369043402,1751443850744,-336.306551,0.00017534,2]
[369043404,1751443850754,-240.519655,0.00017534,2]
[369043406,1751443850764,-151.0,0.00017534,2]
[369043409,1751443850774,-151.0,0.00017534,2]
[369043411,1751443850784,-153.176861,0.00017534,2]
[369043413,1751443850794,-151.0,0.00017534,2]
[369043415,1751443850804,-460.0,0.00017534,2]
[369043417,1751443850813,-460.0,0.00017534,2]
[369043419,1751443850823,-378.867334,0.00017534,2]
[369043421,1751443850832,-378.867334,0.00017534,2]
[369043422,1751443850841,-377.578523,0.00017534,2]
[369043425,1751443850851,-377.578523,0.00017534,2]
[369043426,1751443850860,-239.905057,0.00017534,2]
[369043428,1751443850869,-465.451048,0.00017534,2]
[369043430,1751443850879,-239.905057,0.00017534,2]
[369043432,1751443850888,-465.451048,0.00017534,2]
[369043434,1751443850898,-151.0,0.00017534,2]
[369043436,1751443850908,-151.0,0.00017534,2]
[369043439,1751443850918,-460.0,0.00017534,2]
[369043441,1751443850927,-460.0,0.00017534,2]
[369043442,1751443850937,-460.0,0.00017534,2]
[369043444,1751443850946,-151.0,0.00017534,2]
[369043446,1751443850956,-490.476994,0.00017534,2]
[369043449,1751443850966,-151.0,0.00017534,2]
[369043451,1751443850978,-490.476994,0.00017534,2]
[369043453,1751443850987,-794.32,0.00017534,2]
[369043454,1751443850997,-468.54,0.00017534,2]
[369043455,1751443851006,-166.52976988,0.00017534,2]
[369043456,1751443851017,-213.002438,0.00017534,2]
[369043457,1751443851026,-213.002438,0.00017534,2]
[369043458,1751443851035,-460.0,0.00017534,2]
[369043459,1751443851044,-460.0,0.00017534,2]
[369043460,1751443851055,-460.0,0.00017534,2]